bitfinex/quotes_ETHUSD_20260103
["timestamp","ask_amount","ask_price","bid_price","bid_amount"]
[1767415603236,0.001,3118.1,3117.6,0.002]
[1767415603737,0.001,3118.1,3117.6,2.37261209]
[1767415604265,0.001,3118.1,3117.6,0.002]
[1767415604758,0.001,3118.1,3117.7,2.37061209]
[1767415605181,0.001,3118.1,3117.6,0.002]
[1767415606085,0.001,3118.1,3117.6,5.58020151]
[1767415607187,0.001,3118.1,3117.7,2.37061209]
[1767415608786,0.001,3118.1,3117.6,0.002]
[1767415609377,0.001,3118.1,3117.7,2.37061209]
[1767415609887,0.001,3118.1,3117.6,3.20955749]
[1767415610788,0.001,3118.1,3117.6,0.002]
[1767415611293,0.001,3118.1,3117.6,2.37261209]
[1767415611659,0.001,3118.1,3117.6,0.002]
[1767415611982,0.001,3118.1,3117.6,5.58018074]
[1767415612166,0.001,3118.1,3117.6,3.20956865]
[1767415612366,0.001,3118.1,3117.6,5.58018074]
[1767415612587,0.001,3118.1,3117.7,2.37061209]
[1767415612952,0.001,3118.1,3117.6,2.37261209]
[1767415613184,0.001,3118.1,3117.6,0.002]
[1767415613687,0.001,3118.1,3117.6,2.37261209]
[1767415613886,0.001,3118.1,3117.6,0.002]
[1767415614258,0.001,3118.1,3117.6,5.58017314]
[1767415614584,0.001,3118.1,3117.6,3.20956105]
[1767415615272,0.001,3118.1,3117.7,2.37061209]
[1767415615595,0.001,3118.1,3117.6,0.002]
[1767415616207,0.001,3118.1,3117.6,2.37261209]
[1767415616363,0.001,3118.1,3117.6,0.002]
[1767415616688,0.001,3118.1,3117.7,2.37061209]
[1767415616983,0.001,3118.1,3117.6,3.20957251]
[1767415617493,0.001,3118.1,3117.7,2.37061209]
[1767415617972,0.001,3118.1,3117.6,0.002]
[1767415618190,0.001,3118.1,3117.6,2.37261209]
[1767415618997,0.001,3118.1,3117.6,0.002]
[1767415619790,0.001,3118.1,3117.6,2.30768372]
[1767415620315,0.001,3118.1,3117.6,0.002]
[1767415620493,0.001,3118.1,3117.6,2.30768372]
[1767415620684,0.001,3118.1,3117.7,2.30568372]
[1767415621311,0.001,3118.1,3117.8,3.20738982]
[1767415621491,0.001,3118.4,3118.1,2.30568372]
[1767415621687,0.001,3118.6,3118.4,2.30568372]
[1767415622411,0.001,3118.6,3117.9,2.30568372]
[1767415623416,0.001,3118.6,3118.1,2.30568372]
[1767415623592,0.001,3118.6,3118.0,5.51286781]
[1767415624111,0.001,3118.6,3118.1,2.30568372]
[1767415625583,0.001,3118.6,3118.2,2.30568372]
[1767415628500,0.001,3118.6,3118.0,3.20718409]
[1767415628692,0.001,3118.6,3118.1,2.30568372]
[1767415630619,0.001,3118.6,3118.1,5.5126653]
[1767415630930,0.001,3118.6,3118.0,4.16637265]
[1767415631131,0.001,3118.6,3117.6,0.95870807]
[1767415631132,0.001,3118.6,3117.7,5.51314853]
[1767415631292,0.56894811,3118.6,3117.8,3.20729367]
[1767415632139,0.56894811,3118.6,3118.0,5.51285275]
[1767415632511,0.56894811,3118.6,3118.0,2.30568372]
[1767415634232,0.56894811,3118.6,3118.1,2.30568372]
[1767415636114,0.56894811,3118.6,3117.9,3.20724258]
[1767415637131,0.30399481,3118.5,3117.7,6.41497153]
[1767415638641,0.56894811,3118.6,3117.7,8.72065525]
[1767415639521,0.56894811,3118.6,3117.8,2.30568372]
[1767415640530,0.56894811,3118.6,3118.0,2.30568372]
[1767415640738,0.001,3118.6,3118.0,2.30568372]
[1767415642570,0.001,3118.6,3118.1,2.30568372]
[1767415645341,0.001,3118.6,3118.0,3.20710448]
[1767415646466,0.001,3118.6,3118.0,3.20910448]
[1767415647674,0.001,3118.6,3118.0,0.002]
[1767415650492,0.001,3118.6,3118.1,2.45769662]
[1767415660497,0.12934478,3118.6,3118.1,2.45769662]
[1767415662930,0.001,3118.6,3118.1,2.45769662]
[1767415663225,0.12934478,3118.5,3118.1,2.45769662]
[1767415664926,3.33601766,3118.5,3118.1,2.45769662]
[1767415665136,3.66981943,3118.5,3118.1,2.45769662]
[1767415671747,6.87649231,3118.5,3118.1,2.45769662]
[1767415673047,3.66981943,3118.5,3118.1,2.45769662]
[1767415675645,6.87649231,3118.5,3118.1,2.45769662]
[1767415679652,3.33601766,3118.5,3118.1,2.45769662]
[1767415682245,3.33701766,3118.5,3118.1,2.45769662]
[1767415684066,0.001,3118.5,3118.1,2.45769662]
[1767415689938,0.001,3118.5,3118.0,0.002]
[1767415690354,2.47616453,3118.5,3117.8,2.38913457]
[1767415690652,3.20687554,3118.3,3117.8,2.38913457]
[1767415692634,6.41375108,3118.3,3117.8,2.38913457]
[1767415693763,3.20687554,3118.3,3117.8,2.38913457]
[1767415696763,3.20687554,3118.3,3117.8,2.39113457]
[1767415700364,6.41375108,3118.3,3117.8,0.002]
[1767415700564,1.06199455,3118.2,3117.8,0.002]
[1767415701061,8.88891561,3118.3,3117.8,0.002]
[1767415702589,5.68204007,3118.3,3117.8,0.002]
[1767415703540,8.88891561,3118.3,3117.8,0.002]
[1767415704371,5.68204007,3118.3,3117.8,0.002]
[1767415705459,3.20687554,3118.3,3117.8,0.002]
[1767415705767,3.20687554,3118.3,3117.8,2.39113457]
[1767415706573,4.93784714,3118.4,3117.8,2.39113457]
[1767415706772,4.04881728,3118.4,3117.8,2.39113457]
[1767415709548,2.471,3118.5,3117.9,2.47591275]
[1767415709749,2.471,3118.5,3117.9,2.44383989]
[1767415710480,5.6777125,3118.5,3117.9,2.44383989]
[1767415711872,8.884425,3118.5,3117.9,2.44383989]
[1767415712180,1.11867438,3118.4,3117.9,2.44383989]
[1767415715890,4.32548494,3118.4,3117.9,2.44383989]
[1767415716791,4.32548494,3118.4,3117.8,0.002]
[1767415716993,6.62680372,3118.4,3117.8,0.002]
[1767415719192,1.11867438,3118.4,3117.8,2.44583989]
[1767415720381,1.11967438,3118.4,3117.8,2.44583989]
[1767415720584,0.001,3118.4,3117.8,2.44583989]
[1767415721175,0.001,3118.4,3117.9,2.44383989]
[1767415735310,2.30231878,3118.4,3117.8,0.002]
[1767415736282,2.30131878,3118.3,3117.9,0.002]
[1767415741615,5.5082097,3118.3,3117.9,0.002]
[1767415741823,2.29734445,3118.2,3117.9,0.002]
[1767415742592,2.29734445,3118.3,3117.9,0.002]
[1767415742794,0.55051657,3118.2,3117.9,0.002]
[1767415745261,2.29734445,3118.3,3117.9,0.002]
[1767415752764,2.29834445,3118.3,3117.9,0.002]
[1767415758065,5.50523015,3118.3,3117.9,0.002]
[1767415758264,2.29734445,3118.2,3117.9,0.002]
[1767415763537,2.29734445,3118.0,3117.0,0.002]
[1767415763743,3.40152695,3118.1,3117.0,0.002]
[1767415763744,2.29734445,3117.8,3117.0,0.002]
[1767415766653,2.29734445,3117.6,3117.0,0.002]
[1767415767169,2.29734445,3117.5,3117.0,0.002]
[1767415773276,2.47,3117.6,3117.0,2.46160743]
[1767415774446,3.36710937,3117.6,3117.0,2.46160743]
[1767415777356,2.45160028,3117.5,3117.0,0.002]
[1767415783583,6.06347225,3117.6,3117.0,2.46160743]
[1767415784889,9.27107732,3117.6,3117.0,2.46160743]
[1767415786395,3.36710937,3117.6,3117.0,2.46160743]
[1767415786573,2.47,3117.6,3117.1,2.45960743]
[1767415787995,2.45160028,3118.0,3117.4,2.45960743]
[1767415789280,5.65879015,3118.0,3117.4,2.45960743]
[1767415789492,2.45160028,3118.0,3117.4,2.45960743]
[1767415789697,2.45160028,3118.0,3117.4,5.66739059]
[1767415789869,2.45160028,3118.0,3117.4,2.45960743]
[1767415790069,2.45160028,3118.0,3117.4,5.66740251]
[1767415790270,2.45160028,3118.0,3117.4,3.34714813]
[1767415790572,2.45260028,3118.0,3117.4,3.34714813]
[1767415791992,2.45260028,3118.0,3117.4,6.55494605]
[1767415794177,0.001,3118.0,3117.5,2.45960743]
[1767415795702,0.001,3118.0,3117.5,5.66725938]
[1767415795905,0.001,3118.0,3117.5,6.64352703]
[1767415797203,0.001,3118.0,3117.6,2.45960743]
[1767415797772,0.001,3118.0,3117.5,4.1839196]
[1767415798896,0.001,3118.0,3117.5,0.97626765]
[1767415801707,2.2821475,3118.0,3117.2,2.25964633]
[1767415801888,2.2811475,3117.8,3117.1,3.20804432]
[1767415803500,2.2811475,3117.8,3117.0,5.46984953]
[1767415803703,2.2811475,3117.8,3117.1,3.2081101]
[1767415803899,2.2811475,3117.8,3117.2,0.86779596]
[1767415806185,2.2811475,3117.8,3117.2,4.07578574]
[1767415807611,5.48856509,3117.8,3117.1,2.26164633]
[1767415807914,2.2811475,3117.7,3117.1,2.26164633]
[1767415808411,2.2811475,3117.6,3117.1,0.002]
[1767415809691,5.48884597,3117.5,3117.1,0.002]
[1767415809882,6.62812332,3117.5,3117.1,0.002]
[1767415811317,2.2811475,3117.3,3117.1,0.002]
[1767415815525,2.2811475,3117.3,3116.7,3.21047833]
[1767415815526,2.2811475,3117.2,3116.6,0.001]
[1767415815723,2.2811475,3116.9,3116.5,0.002]
[1767415821137,5.48946562,3116.9,3116.5,0.002]
[1767415822640,2.2811475,3116.8,3116.5,0.002]
[1767415825242,5.48957025,3116.8,3116.5,0.002]
[1767415828537,2.2811475,3116.8,3116.5,0.002]
[1767415829507,5.99544104,3116.8,3116.5,0.002]
[1767415830128,2.42956672,3116.7,3116.5,0.002]
[1767415831633,3.71429354,3116.8,3116.5,0.002]
[1767415831933,6.14386026,3116.8,3116.5,0.002]
[1767415833434,2.42956672,3116.7,3116.5,0.002]
[1767415836026,2.42956672,3116.6,3116.5,0.002]
[1767415837040,5.6381915,3116.6,3116.1,0.002]
[1767415837223,2.42956672,3116.5,3115.7,2.49870885]
[1767415837416,3.20862478,3116.6,3115.7,2.49870885]
[1767415837417,2.99338587,3116.4,3115.7,2.49870885]
[1767415838143,6.20230687,3116.4,3115.7,2.49870885]
[1767415838512,6.20230687,3116.4,3115.7,5.70825854]
[1767415838719,6.20230687,3116.4,3115.7,2.49870885]
[1767415840248,9.41122787,3116.4,3115.7,2.49870885]
[1767415840544,3.37068951,3116.3,3115.7,2.49870885]
[1767415840754,3.37068951,3116.3,3115.5,2.4989938]
[1767415841055,2.42956672,3116.2,3115.3,2.4989938]
[1767415841429,2.42956672,3116.2,3115.3,5.70894681]
[1767415841635,2.42956672,3116.1,3115.3,5.70894681]
[1767415841952,2.42956672,3116.1,3115.4,2.4989938]
[1767415843561,5.63874245,3116.1,3115.4,2.4989938]
[1767415844063,5.63874245,3116.1,3115.4,5.70885264]
[1767415844261,5.63874245,3116.1,3115.4,2.4989938]
[1767415844960,3.20917573,3116.1,3115.5,2.4989938]
[1767415845138,3.20906333,3116.2,3115.5,2.4989938]
[1767415845860,3.20906333,3116.2,3115.6,2.4989938]
[1767415846162,3.67055158,3116.2,3115.6,2.4989938]
[1767415846364,0.46148825,3116.2,3115.6,2.4989938]
[1767415847538,4.00723716,3116.7,3115.9,2.4989938]
[1767415847733,3.20862478,3116.6,3115.9,2.4989938]
[1767415848869,6.41724956,3116.6,3115.9,2.4989938]
[1767415849037,8.84681628,3116.6,3115.9,2.4989938]
[1767415849236,1.03032023,3116.5,3115.9,2.4989938]
[1767415849678,4.23910043,3116.5,3115.9,2.4989938]
[1767415852152,1.03032023,3116.5,3115.9,2.4989938]
[1767415852654,4.23905541,3116.5,3115.9,2.4989938]
[1767415855040,1.03032023,3116.5,3115.9,2.4989938]
[1767415855240,2.43056672,3116.6,3115.9,2.4989938]
[1767415855241,0.001,3116.6,3116.1,2.4989938]
[1767415856381,0.001,3116.6,3116.3,2.4989938]
[1767415861459,2.45061308,3116.6,3116.2,3.20903664]
[1767415861777,2.45061308,3116.6,3116.0,6.41846844]
[1767415862076,2.45061308,3116.6,3116.1,0.72604684]
[1767415863581,0.001,3116.6,3116.2,3.20903664]
[1767415863761,0.001,3116.6,3116.2,5.46339232]
[1767415865673,0.001,3116.6,3116.2,2.25435568]
[1767415866071,0.001,3116.6,3116.2,5.46335372]
[1767415866270,0.001,3116.6,3116.3,0.93985155]
[1767415870391,0.001,3116.6,3116.1,3.93514365]
[1767415879074,0.001,3116.6,3116.1,3.20909681]
[1767415881897,0.001,3116.6,3116.1,2.25435568]
[1767415885207,2.45061308,3116.6,3116.0,6.41847782]
[1767415885681,2.45061308,3116.6,3116.0,3.20923521]
[1767415885880,2.45061308,3116.6,3116.0,6.41847782]
[1767415886079,0.001,3116.6,3116.1,2.25435568]
[1767415887198,0.001,3116.6,3116.1,5.46346797]
[1767415889702,0.001,3116.8,3116.3,2.27724407]
[1767415890204,2.29032649,3116.8,3116.1,3.20911229]
[1767415891096,0.001,3116.6,3116.1,3.20911229]
[1767415891272,0.001,3116.6,3116.1,4.25802004]
[1767415891975,0.001,3116.6,3116.1,7.46715966]
[1767415892381,0.001,3116.6,3116.1,9.74440373]
[1767415895387,0.001,3116.6,3116.2,2.27724407]
[1767415895586,0.001,3116.8,3116.5,2.27724407]
[1767415896186,2.28932649,3117.3,3116.6,0.03208624]
[1767415897194,2.28932649,3117.3,3116.5,2.27724407]
[1767415897388,5.4972717,3117.3,3116.6,3.20862478]
[1767415899420,5.4972717,3117.3,3116.5,5.48593355]
[1767415899719,2.28932649,3117.2,3116.5,5.48593355]
[1767415900725,2.28932649,3117.1,3116.3,2.27724407]
[1767415901434,2.28932649,3117.1,3116.1,2.30933546]
[1767415902305,2.28932649,3117.0,3116.2,5.48627537]
[1767415902949,2.28932649,3117.0,3116.2,8.69531201]
[1767415906418,2.28932649,3116.9,3116.2,3.2090313]
[1767415907118,2.28932649,3116.9,3116.1,6.41825766]
[1767415907322,2.28932649,3116.9,3116.1,9.6494519]
[1767415907820,2.28932649,3117.1,3116.2,2.30933443]
[1767415908023,2.29032649,3117.3,3116.6,2.69660187]
[1767415908213,2.29032649,3117.9,3117.2,4.97384594]
[1767415908409,3.20739689,3117.8,3117.2,2.27724407]
[1767415908607,3.20739689,3117.8,3116.7,0.842]
[1767415908608,2.28932649,3117.6,3116.8,2.27724407]
[1767415908846,2.28932649,3117.6,3116.7,0.842]
[1767415909142,2.28932649,3117.6,3116.8,3.20841889]
[1767415909320,2.28932649,3117.5,3116.8,3.20841889]
[1767415910438,2.28932649,3117.5,3116.8,7.37045046]
[1767415911026,3.20853736,3117.7,3116.8,7.37045046]
[1767415911027,0.001,3117.7,3117.1,2.27724407]
[1767415911225,0.001,3117.7,3117.2,3.20800718]
[1767415911614,2.29032649,3117.7,3117.1,3.20807816]
[1767415912611,2.29032649,3117.7,3117.0,3.24025733]
[1767415912940,2.29032649,3117.7,3117.0,3.2081752]
[1767415913638,2.29032649,3117.7,3116.9,5.48553697]
[1767415913839,0.001,3117.6,3117.0,0.64391497]
[1767415915152,2.29032649,3117.6,3117.0,3.85212799]
[1767415916042,2.29032649,3117.6,3117.0,3.84224562]
[1767415920644,2.29032649,3117.6,3117.0,3.20821302]
[1767415922028,2.29032649,3117.6,3117.0,3.21021302]
[1767415926050,2.29032649,3117.6,3116.9,6.41660885]
[1767415926256,2.29032649,3117.6,3116.9,6.448692]
[1767415927271,0.001,3117.6,3117.0,2.28403101]
[1767415927732,0.001,3117.6,3117.0,2.31611314]
[1767415928328,0.001,3117.6,3117.1,5.49214111]
[1767415930524,3.16853858,3117.9,3117.2,2.31611108]
[1767415931952,3.16853858,3117.9,3117.3,3.20790427]
[1767415932165,2.32653858,3117.9,3117.3,3.20790427]
[1767415932354,3.16853858,3117.9,3117.3,5.49193528]
[1767415932872,2.32653858,3117.9,3117.3,5.49193528]
[1767415934176,0.001,3118.0,3117.4,2.28403101]
[1767415934379,0.001,3118.0,3117.5,0.03207698]
[1767415934678,0.001,3118.0,3117.4,2.28403101]
[1767415935341,2.32882353,3118.0,3117.3,0.45632059]
[1767415936244,2.32882353,3118.0,3117.2,3.20799165]
[1767415936742,2.32882353,3118.0,3117.2,5.49202266]
[1767415936942,5.53601958,3118.0,3117.2,5.49202266]
[1767415937157,2.32882353,3118.0,3117.2,5.49202266]
[1767415938774,2.32882353,3118.0,3117.2,8.70002984]
[1767415938941,2.32882353,3118.0,3117.2,9.65723631]
[1767415941771,2.32882353,3118.0,3117.3,2.28403101]
[1767415945380,5.5360106,3118.0,3117.3,5.49189653]
[1767415945575,2.32782353,3117.9,3117.3,3.20786552]
[1767415945775,2.32782353,3117.9,3117.3,3.20988882]
[1767415948178,2.32782353,3117.9,3117.3,0.002]
[1767415956355,2.96572821,3117.9,3117.3,0.002]
[1767415957185,2.30177766,3117.8,3117.3,0.002]
[1767415959686,2.30177766,3117.8,3117.0,6.41842604]
[1767415959687,2.30177766,3117.7,3116.5,2.42871944]
[1767415959990,2.30177766,3117.7,3116.6,3.2085386]
[1767415960282,2.30177766,3117.5,3116.6,3.2085386]
[1767415960488,1.14124154,3117.6,3116.6,3.2085386]
[1767415960489,2.30177766,3117.3,3116.6,3.2085386]
[1767415961158,2.30177766,3117.2,3116.6,3.2085386]
[1767415965193,2.30177766,3117.1,3116.5,3.21072773]
[1767415970499,2.93695062,3117.1,3116.5,3.21072773]
[1767415973002,5.51006542,3117.9,3117.0,2.42671944]
[1767415973171,2.30177766,3117.8,3117.1,2.42671944]
[1767415975072,2.30177766,3117.8,3117.1,5.63482369]
[1767415975404,2.4050016,3117.7,3117.1,5.63482369]
[1767415976200,2.4050016,3117.7,3117.1,2.42671944]
[1767415976683,2.4050016,3117.7,3117.1,5.63482249]
[1767415979806,2.4050016,3117.7,3117.0,0.002]
[1767415981200,5.61252433,3117.7,3117.0,0.002]
[1767415981403,2.26971883,3117.5,3116.5,0.002]
[1767415981782,2.26971883,3117.3,3117.0,0.002]
[1767415984012,2.26971883,3117.2,3117.0,0.002]
[1767415985095,2.26971883,3117.1,3116.5,0.00075391]
[1767415985416,2.26971883,3116.9,3116.5,0.00075391]
[1767415986014,2.26971883,3116.7,3116.5,0.00075391]
[1767415987617,3.20841889,3116.8,3116.5,0.00075391]
[1767415987996,2.26971883,3116.8,3116.5,0.00075391]
[1767415989517,2.27071883,3116.8,3116.5,0.00075391]
[1767415989819,0.54790348,3116.7,3116.5,0.00075391]
[1767415990519,3.75643761,3116.7,3116.5,0.00075391]
[1767415991019,6.02615644,3116.7,3116.5,0.00075391]
[1767415995534,0.001,3116.8,3116.5,0.00075391]
[1767415996402,3.20943511,3116.8,3116.5,0.00075391]
[1767415999503,0.001,3116.8,3116.5,0.00075391]
[1767416002020,3.20852183,3116.7,3116.5,0.00075391]
[1767416002222,5.47824066,3116.7,3116.5,0.00075391]
[1767416002428,0.54792407,3116.6,3116.5,0.00075391]
[1767416005236,3.2094592,3116.8,3116.5,0.00075391]
[1767416005807,0.001,3116.8,3116.5,0.00075391]
[1767416006319,0.001,3116.8,3116.5,2.45592985]
[1767416012138,2.39117796,3117.4,3116.6,2.32741394]
[1767416012346,0.842,3117.3,3116.6,2.32741394]
[1767416013728,3.23317796,3117.3,3116.6,2.32741394]
[1767416013931,4.17295488,3117.2,3116.6,2.32741394]
[1767416015241,4.17395488,3117.2,3116.6,2.32741394]
[1767416017344,6.56513284,3117.2,3116.6,2.32741394]
[1767416019210,2.39117796,3117.1,3116.5,0.00075391]
[1767416020143,5.59937844,3117.1,3116.5,0.00075391]
[1767416020332,2.39117796,3117.0,3116.5,0.00075391]
[1767416021647,5.5994129,3117.0,3116.5,0.00075391]
[1767416022845,5.6004129,3117.0,3116.5,0.00075391]
[1767416026552,2.39117796,3116.9,3116.5,0.00075391]
[1767416032974,5.59952018,3116.9,3116.5,0.00075391]
[1767416036664,2.39117796,3116.8,3116.5,0.00075391]
[1767416038166,5.59960149,3116.8,3116.5,0.00075391]
[1767416040538,2.39117796,3116.8,3116.5,0.00075391]
[1767416040739,5.59960429,3116.8,3116.5,0.00075391]
[1767416041937,2.37953653,3116.7,3116.5,0.00075391]
[1767416042143,2.37953653,3116.7,3116.0,0.002]
[1767416043936,8.13973518,3116.8,3116.0,0.002]
[1767416043937,5.58816131,3116.6,3116.0,0.002]
[1767416046577,2.37953653,3116.5,3116.0,0.002]
[1767416047375,5.58805836,3116.7,3116.0,2.45954201]
[1767416047580,0.842,3116.7,3116.1,2.70349621]
[1767416047774,0.842,3116.7,3116.1,2.45754201]
[1767416049362,4.05054855,3116.7,3116.1,2.45754201]
[1767416051479,2.37953653,3116.6,3116.0,0.002]
[1767416053675,4.05054855,3116.7,3116.1,2.45754201]
[1767416053973,5.0144891,3116.7,3116.1,2.45754201]
[1767416055288,8.22303765,3116.7,3116.1,2.45754201]
[1767416055586,10.60257418,3116.7,3116.0,0.002]
[1767416055784,7.39402563,3116.7,3116.0,0.002]
[1767416055959,7.39402563,3116.7,3116.0,2.45954201]
[1767416056161,2.37953653,3116.6,3116.0,2.45954201]
[1767416058082,4.1724891,3116.7,3116.0,2.45954201]
[1767416058283,5.0144891,3116.7,3116.0,2.45954201]
[1767416060393,2.37953653,3116.6,3116.0,0.002]
[1767416062903,2.37953653,3116.6,3116.0,2.45954201]
[1767416063199,5.0144891,3116.7,3116.0,2.45954201]
[1767416063396,5.0154891,3116.7,3116.0,2.45954201]
[1767416064987,5.0154891,3116.7,3116.1,2.45754201]
[1767416065193,5.0154891,3116.7,3116.0,3.21123377]
[1767416065194,2.37953653,3116.6,3116.0,3.21123377]
[1767416065580,5.0154891,3116.7,3116.1,2.45754201]
[1767416066372,0.96494055,3116.7,3116.2,2.45754201]
[1767416066573,0.001,3116.7,3116.2,2.45754201]
[1767416067603,2.37953653,3116.6,3116.0,0.002]
[1767416069177,2.38818056,3116.5,3116.0,0.002]
[1767416071170,2.44007957,3116.7,3116.0,0.002]
[1767416071471,0.001,3116.6,3116.1,2.44577984]
[1767416071677,2.43907957,3116.5,3116.2,0.51771422]
[1767416072074,2.43747521,3116.5,3116.2,0.51771422]
[1767416072602,2.43907957,3116.5,3116.2,0.51771422]
[1767416073200,0.001,3116.6,3116.2,2.96349406]
[1767416073404,0.001,3116.6,3116.3,0.61725332]
[1767416073711,1.65233225,3117.1,3116.4,0.0320883]
[1767416073876,1.65233225,3117.1,3116.3,3.31452324]
[1767416074071,4.04997391,3117.3,3116.4,2.44577984]
[1767416074402,4.04997391,3117.3,3116.6,2.44577984]
[1767416074601,1.65233225,3117.1,3116.5,0.57603031]
[1767416076088,4.8613543,3117.2,3116.6,2.44577984]
[1767416076270,4.8613543,3117.2,3116.5,0.57603031]
[1767416076475,4.8613543,3117.2,3116.5,3.02181015]
[1767416076671,4.8613543,3117.2,3116.6,0.62306248]
[1767416077074,4.8613543,3117.2,3116.3,3.82616313]
[1767416077496,1.02926977,3117.1,3116.3,6.27194297]
[1767416079404,1.02926977,3117.0,3116.3,3.82816313]
[1767416079995,1.02926977,3117.0,3116.3,0.61925332]
[1767416080382,1.02926977,3117.0,3116.3,0.002]
[1767416081301,4.23755819,3117.0,3116.3,0.002]
[1767416082417,3.20828842,3117.0,3116.3,2.44777984]
[1767416084127,1.02926977,3116.9,3116.3,0.002]
[1767416085535,1.02926977,3116.7,3116.3,0.002]
[1767416086419,3.20841889,3116.8,3116.3,0.002]
[1767416086619,3.20841889,3116.8,3116.3,2.44777984]
[1767416087615,0.001,3117.2,3116.4,2.44577984]
[1767416087800,0.842,3117.1,3116.4,2.44577984]
[1767416088608,0.001,3117.2,3116.5,2.44577984]
[1767416088819,0.001,3117.2,3116.5,2.47786711]
[1767416090898,0.001,3117.2,3116.6,3.20862478]
[1767416091221,0.001,3117.2,3116.7,3.04651424]
[1767416092329,0.001,3117.2,3116.7,3.01442903]
[1767416093054,0.001,3117.2,3116.7,2.44577984]
[1767416098529,0.001,3117.2,3116.5,2.44777984]
[1767416101434,3.20900718,3117.2,3116.5,2.44777984]
[1767416101630,7.44628413,3117.2,3116.5,2.44777984]
[1767416101802,1.02926977,3117.1,3116.3,3.2108878]
[1767416102429,1.02926977,3117.1,3116.3,0.002]
[1767416102629,1.02726977,3117.0,3116.3,3.21092739]
[1767416103301,1.02726977,3117.0,3116.3,0.002]
[1767416104131,1.02726977,3116.9,3116.3,0.002]
[1767416105629,3.20822331,3117.0,3116.4,2.2955796]
[1767416105828,1.7433689,3116.9,3116.3,0.002]
[1767416106038,1.02726977,3116.8,3116.3,0.002]
[1767416106433,3.20822331,3117.0,3116.3,0.002]
[1767416106752,3.20822331,3117.0,3116.4,2.2955796]
[1767416110033,3.20813961,3117.1,3116.4,2.2955796]
[1767416110034,6.41701436,3117.2,3116.4,2.2955796]
[1767416110234,0.74442841,3117.1,3116.4,2.2955796]
[1767416113439,3.20821302,3117.0,3116.4,2.2955796]
[1767416114121,5.07748279,3117.0,3116.4,2.2955796]
[1767416114733,4.05021302,3117.0,3116.4,2.2955796]
[1767416116046,4.05021302,3117.0,3116.4,2.2975796]
[1767416116224,4.95331575,3117.0,3116.4,2.2975796]
[1767416116845,8.16152877,3117.0,3116.4,2.2975796]
[1767416120818,2.44851498,3116.9,3116.0,0.002]
[1767416121022,2.53804193,3116.9,3116.0,2.2975796]
[1767416121234,1.06995707,3116.8,3116.0,2.2975796]
[1767416123452,3.20852183,3116.7,3116.0,2.2975796]
[1767416127352,3.20852183,3116.7,3116.0,0.002]
[1767416127353,2.44851498,3116.6,3116.0,0.002]
[1767416127568,6.41704366,3116.7,3116.0,2.2975796]
[1767416127727,3.9572219,3116.7,3116.0,2.2975796]
[1767416127922,7.16574373,3116.7,3116.0,2.2975796]
[1767416130584,3.9572219,3116.7,3116.0,2.2975796]
[1767416132739,3.9572219,3116.7,3116.0,2.2985278]
[1767416132740,2.31933969,3116.6,3116.0,2.2985278]
[1767416133357,3.20872773,3116.5,3116.0,2.2985278]
[1767416133728,7.36600155,3116.5,3116.0,0.002]
[1767416136351,4.15727382,3116.5,3116.0,0.002]
[1767416136536,3.20872773,3116.5,3116.0,2.2985278]
[1767416137562,3.20862478,3116.6,3116.0,2.2985278]
[1767416139567,3.20962478,3116.6,3116.0,2.2985278]
[1767416143959,0.001,3116.6,3116.1,0.03209139]
[1767416144141,0.001,3116.6,3116.2,2.2965278]
[1767416145163,0.001,3116.6,3116.0,2.2985278]
[1767416146478,0.001,3116.6,3116.0,2.84931463]
[1767416147564,0.001,3116.6,3116.0,2.2985278]
[1767416150466,2.31933969,3116.5,3116.0,0.002]
[1767416151475,0.001,3116.6,3116.0,0.002]
[1767416151670,0.001,3116.6,3116.0,2.2985278]
[1767416151879,2.31933969,3116.5,3116.0,0.002]
[1767416156972,2.31933969,3116.4,3115.8,3.20611765]
[1767416157485,2.31933969,3116.4,3115.8,5.50264545]
[1767416157865,2.31933969,3116.4,3115.8,3.20611765]
[1767416158065,2.31933969,3116.4,3115.8,3.94913261]
[1767416158267,5.52900995,3116.6,3115.8,6.24566041]
[1767416158465,2.31933969,3116.5,3115.8,6.24566041]
[1767416158666,2.31933969,3116.5,3115.8,3.94913261]
[1767416158987,3.20967026,3116.6,3115.9,2.2965278]
[1767416159190,2.31933969,3116.5,3115.8,3.20611765]
[1767416160385,2.31933969,3116.5,3115.8,5.57012399]
[1767416160559,3.20967026,3116.6,3115.9,2.36400634]
[1767416161465,2.32576917,3116.5,3115.7,4.22191628]
[1767416161664,2.32576917,3116.5,3115.8,2.36400634]
[1767416161877,2.32576917,3116.5,3115.7,4.22191628]
[1767416162054,3.20967026,3116.6,3115.8,2.36400634]
[1767416162254,2.32576917,3116.4,3115.7,4.22191628]
[1767416162556,2.32576917,3116.4,3115.7,6.58592262]
[1767416163095,2.32576917,3116.4,3115.7,4.22191628]
[1767416163290,2.69757261,3115.8,3115.2,0.001]
[1767416163595,2.69757261,3115.8,3115.3,2.36400634]
[1767416163794,0.26975726,3115.7,3115.3,2.36400634]
[1767416164160,0.26975726,3115.7,3115.2,0.001]
[1767416164578,0.26975726,3115.7,3115.2,2.36500634]
[1767416168685,3.47931628,3115.7,3115.2,2.36500634]
[1767416168992,0.26975726,3115.7,3115.2,2.36500634]
[1767416171492,0.27075726,3115.7,3115.2,2.36500634]
[1767416172698,2.32576917,3115.6,3115.1,0.002]
[1767416174401,2.90636903,3115.6,3115.0,0.002]
[1767416174786,2.32576917,3115.5,3115.0,0.002]
[1767416175498,2.32576917,3115.4,3114.7,0.002]
[1767416176680,3.20996372,3115.3,3114.7,0.002]
[1767416176893,5.53573289,3115.3,3114.7,0.002]
[1767416177092,6.68003946,3115.3,3114.7,0.002]
[1767416177273,2.32576917,3115.2,3114.7,0.002]
[1767416177999,4.35427029,3115.3,3114.7,2.36600634]
[1767416178605,2.32576917,3115.2,3114.7,0.002]
[1767416179271,1.14430657,3115.3,3114.7,0.002]
[1767416179475,5.02334178,3115.5,3114.8,2.36400634]
[1767416180092,0.58059986,3115.6,3114.8,2.36400634]
[1767416180285,0.843,3115.7,3115.0,2.36400634]
[1767416181087,4.05255692,3115.7,3115.0,2.36400634]
[1767416181287,0.843,3115.7,3115.0,2.36400634]
[1767416181704,0.843,3115.7,3115.1,2.36400634]
[1767416181898,4.05257032,3115.7,3115.1,2.36400634]